Workbook

Sheet Zestawienie zmian w kap. wł (hidden)
B3: ZESTAWIENIE ZMIAN W KAPITALE (FUNDUSZU) WŁASNYM | F3: Stan na 31.12.2012
F4: CAPITAL SERVICE S.A.
F5: 2012
B7: I. | C7: Kapitał własny na początek okresu (BO) | F7: =#REF! -> 
C8: - korekty błędów podstawowych | F8: 0
B9: Ia. | C9: Kapitał własny na początek okresu (BO), po korektach | F9: =F7+F8 -> 
B10: 1. | C10: Kapitał podstawowy na początek okresu | F10: =3058587.21 -> 3058587.21
B11: 1.1. | C11: Zwiększenie kapitału podstawowego - z tytułu: | F11: =SUM(F12:F12) -> 941412.79
C12: - podziału zysku 2011 r. | F12: 941412.79
B13: 1.2. | C13: Zmniejszenie kapitału podstawowego - z tytułu: | F13: =SUM(F14:F14) -> 0
C14: - umorzenia udziałów | F14: 0
B15: 1.3. | C15: Kapitał podstawowy na koniec okresu | F15: =F10+F11-F13 -> 4000000
B16: 2. | C16: Należne wpłaty na kapitał podstawowy na początek okresu | F16: 0
B17: 2.1. | C17: Zwiększenie należnych wpłat na kapitał podstawowy - z tytułu: | F17: 0
B18: 2.2. | C18: Zmniejszenie należnych wpłat na kapitał podstawowy - z tytułu: | F18: 0
B19: 2.3. | C19: Należne wpłaty na kapitał podstawowy na koniec okresu | F19: =SUM(F16:F18) -> 0
B20: 3. | C20: Udziały własne na początek okresu | F20: 0
B21: 3.1. | C21: Zwiększenie - z tytułu .... | F21: 0
B22: 3.2.. | C22: Zmniejszenie - z tytułu .... | F22: 0
B23: 3.3. | C23: Udziały własne na koniec okresu | F23: =SUM(F20:F22) -> 0
B24: 4. | C24: Kapitał zapasowy na początek okresu | F24: 0
B25: 4.1. | C25: Zwiększenie kapitału zapasowego - z tytułu | F25: =SUM(F26:F26) -> 0
C26: - z podziału zysku | F26: 0
B27: 4.2 | C27: Zmniejszenie kapitału zapasowego - z tytułu | F27: 0
C28: - przeniesienia na fundusz rezerwowy | F28: 0
B29: 4.3 | C29: Stan kapitału zapasowego na koniec okresu | F29: =F24+F25-F27 -> 0
B30: 5. | C30: Kapitał z aktualizacji wyceny na początek okresu | F30: 0
B31: 5.1. | C31: Zwiększenie kapitału z aktualizacji wyceny z tytułu | F31: 0
B32: 5.2 | C32: Zmniejszenie kapitału z aktualizacji wyceny z tytułu | F32: =SUM(F33:F33) -> 0
C33: - zbycia środków trwałych (przeniesiono na kapitał rezerwowy) | F33: 0
B34: 5.3. | C34: Kapitał z aktualizacji wyceny na koniec okresu | F34: =F30+F31+F32 -> 0
B35: 6. | C35: Pozostałe kapitały rezerwowe na początek okresu | F35: =0 -> 0
B36: 6.1. | C36: Zwiększenie pozostałych kapitałów rezerwowych - razem, w tym z tytułu: | F36: =SUM(F37:F41) -> 279696.13
C37: - przeniesienia z kapitału zapasowego | F37: 0
C38: - podziału zysku 2011 r. | F38: =279696.13 -> 279696.13
C39: - przeniesienia kapitału z aktualizacji | F39: 0
C40: - emisji udziałów powyżej wartości nominalnej (aggio) | F40: 0
C41: - z innych tytułów | F41: 0
B42: 6.2 | C42: Zmniejszenie pozostałych kapitałów rezerwowych - razem, w tym z tytułu: | F42: =SUM(F43:F46) -> 0
C43: - sfinansowania straty | F43: 0
C44: - przeznaczenia na dodatkową dywidendę | F44: 0
C45: - przeznaczenia na zwiększenie ilości / wartości udziałów w kapitale podstaw. | F45: 0
C46: - z innych tytułów' | F46: 0
B47: 6.3. | C47: Pozostałe kapitały rezerwowe na koniec okresu | F47: =F35+F36-F42 -> 279696.13
B48: 7. | C48: Zysk (strata) z lat ubiegłych na początek okresu | F48: =F49-F59 -> 0
B49: 7.1. | C49: Zysk z lat ubiegłych na początek okresu | F49: 0
C50: - korekty błędów podstawowych | F50: 0
C51: - zysk z lat ubiegłych na początek okresu, po korektach | F51: =SUM(F49:F50) -> 0
B52: 7.2 | C52: Zmniejszenia zysku z lat ubiegłych w roku obrotowym - z tytułu: | F52: 0
C53: a) przeniesienia na kapitał rezerwowy | F53: 0
C54: b) przeniesienia na kapitał zapasowy | F54: 0
C55: c) wypłaconej dywidendy | F55: 0
C56: d) przeznaczenia na ZFŚS | F56: 0
C57: e) przeznaczenia na darowizny | F57: 0
B58: 7.3. | C58: Zysk z lat ubiegłych na koniec okresu | F58: =SUM(F51:F57) -> 0
B59: 7.4. | C59: Strata z lat ubiegłych na początek okresu, | F59: 0
C60: - korekty błędów podstawowych | F60: 0
C61: - strata z lat ubiegłych na początek okresu, po korektach | F61: 0
B62: 7.5 | C62: Zwiększenie straty z lat ub. w roku obrot. z tytułu .... | F62: 0
B63: 7.6 | C63: Zmniejszenie straty z lat ub. w roku obrot. z tytułu sfinansowania z kap. rezerw. | F63: 0
B64: 7.7. | C64: Strata z lat ubiegłych na koniec okresu | F64: =SUM(F61:F63) -> 0
B65: 7.8. | C65: Wynik finansowy z lat ubiegłych na koniec okresu - per saldo | F65: =F58-F64 -> 0
B66: 8. | C66: Wynik netto roku obrotowego (a-b-c) | F66: =SUM(F67:F69) -> 105633.08
C67: a) zysk netto | F67: 105633.08
C68: b) strata netto 2012 | F68: 0
C69: c) odpisy z zysku | F69: 0
B70: II. | C70: Kapitał własny na koniec okresu (BZ) | F70: =F15-F19-F23+F29+F34+F47+F65+F66 -> 4385329.21
B71: IIIa. | C71: Planowany podział zysku - poza kapitały własne (dywidenda itp.) | F71: 0
B72: IIIa. | C72: Kapitał własny na koniec okresu, po uwzględnieniu proponowanego podziału zysku poza kapitały własne | F72: =F70-F71 -> 4385329.21
E74: =#REF! -> 

Sheet WYBRANE DANE FINANSOWE
A2: Lp. | B2: Pozycja: | D2: dane w tys. PLN | G2: dane w tys. EUR
C3: Nota: | D3: 3 miesiące zakończone 31.03.2015 niebadane | E3: 31.12.2014 zbadane | F3: 3 miesiące zakończone 31.03.2014 niebadane | G3: 3 miesiące zakończone 31.03.2015 niebadane | H3: 31.12.2014 zbadane | I3: 3 miesiące zakończone 31.03.2014 niebadane
B5: Aktywa trwałe | D5: 3343000 | E5: 2378000 | F5: 2512000 | G5: 818000 | H5: 558000 | I5: 602000
B6: Aktywa obrotowe | D6: 20032000 | E6: 13838000 | F6: 11292000 | G6: 4899000 | H6: 3247000 | I6: 2707000
B7: Aktywa razem | D7: =D5+D6 -> 23375000 | E7: =E5+E6 -> 16216000 | F7: =F5+F6 -> 13804000 | G7: =SUM(G5:G6) -> 5717000 | H7: =SUM(H5:H6) -> 3805000 | I7: =SUM(I5:I6) -> 3309000
B9: Kapitały własne | D9: 10075000 | E9: 7744000 | F9: 6061000 | G9: 2464000 | H9: 1817000 | I9: 1453000
B10: Zobowiązania i rezerwy na zobowiązania | D10: 13300000 | E10: 8472000 | F10: 7743000 | G10: 3253000 | H10: 1988000 | I10: 1856000
B11: Pasywa razem | D11: =SUM(D9:D10) -> 23375000 | E11: =SUM(E9:E10) -> 16216000 | F11: 13804000 | G11: 5717000 | H11: 3805000 | I11: 3309000
B13: Przychody netto ze sprzedaży i zrównane z nimi | D13: 8432000 | F13: 6244000 | G13: 2032000 | I13: 1490000
B14: ='P&LA'!C11 -> Koszty działalności operacyjnej | D14: 6743000 | F14: 5289000 | G14: 1625000 | I14: 1262000
B15: Zysk (strata) ze sprzedaży | D15: =D13-D14 -> 1689000 | F15: =F13-F14 -> 955000 | G15: =G13-G14 -> 407000 | I15: =I13-I14 -> 228000
B16: Wynik na pozostałej działalności | D16: 1741000 | F16: 165000 | G16: 420000 | I16: 39000
B17: Zysk (strata) z działalności operacyjnej | D17: =D15+D16 -> 3430000 | F17: =F15+F16 -> 1120000 | G17: =G15+G16 -> 827000 | I17: =I15+I16 -> 267000
B18: Wynik na operacjach finansowych | D18: -717000 | F18: -209000 | G18: -173000 | I18: -50000
B19: Zysk (strata) z działalności gospodarczej | D19: =D17+D18 -> 2713000 | F19: =F17+F18 -> 911000 | G19: =G17+G18 -> 654000 | I19: =I17+I18 -> 217000
B20: Wynik zdarzeń nadzwyczajnych | D20: 0 | F20: 0 | G20: 0 | I20: 0
B21: Zysk (strata) brutto | D21: =D19 -> 2713000 | F21: =F19 -> 911000 | G21: =G19+G20 -> 654000 | I21: =I19+I20 -> 217000
B22: Podatek dochodowy bieżący i odroczony | D22: -382000 | F22: -319000 | G22: -92000 | I22: -76000
B23: Zysk (strata) netto | D23: =D21+D22 -> 2331000 | F23: =F21+F22 -> 592000 | G23: =G21+G22 -> 562000 | I23: =I21+I22 -> 141000
B25: Przepływy środków pieniężnych:
B26: - z działalności operacyjne | D26: -220000 | F26: 1623000 | G26: -53000 | I26: 387000
B27: - inwestycyjnej | D27: -1215000 | F27: -464000 | G27: -293000 | I27: -111000
B28: - finansowej | D28: 2617000 | F28: -711000 | G28: 631000 | I28: -170000
B29: Zmiana stanu środków pieniężnych | D29: =SUM(D26:D28) -> 1182000 | F29: =SUM(F26:F28) -> 448000 | G29: =SUM(G26:G28) -> 285000 | I29: =SUM(I26:I28) -> 106000

Sheet BILANS AKTYWA
A1: Lp. | C1: Pozycja: | D1: 31.03.2015 | E1: 31.12.2014 | F1: 31.03.2014
A3: A. | C3: Aktywa trwałe | D3: =D6+D8+D10+D12+D14 -> 3343000 | E3: =E6+E8+E10+E12+E14 -> 2378000 | F3: =F6+F8+F10+F12+F14 -> 2512000
C4: udział w sumie bilansowej | D4: =D3/D$29 -> 0.1430160428 | E4: =E3/E$29 -> 0.1466452886 | F4: =F3/F$29 -> 0.1819762388
B6: I. | C6: Wartości niematerialne i prawne | D6: 49000 | E6: 48000 | F6: 51000
C7: udział w sumie bilansowej | D7: =D6/D$29 -> 0.002096256684 | E7: =E6/E$29 -> 0.002960039467 | F7: =F6/F$29 -> 0.003694581281
B8: II. | C8: Rzeczowe aktywa trwałe | D8: 3132000 | E8: 2168000 | F8: 2376000
C9: udział w sumie bilansowej | D9: =D8/D$29 -> 0.1339893048 | E9: =E8/E$29 -> 0.1336951159 | F9: =F8/F$29 -> 0.172124022
B10: III. | C10: Należności długoterminowe | D10: 0 | E10: 0 | F10: 0
C11: udział w sumie bilansowej | D11: =D10/D$29 -> 0 | E11: =E10/E$29 -> 0 | F11: =F10/F$29 -> 0
B12: IV. | C12: Inwestycje długoterminowe | D12: 0 | E12: 0 | F12: 0
C13: udział w sumie bilansowej | D13: =D12/D$29 -> 0 | E13: =E12/E$29 -> 0 | F13: =F12/F$29 -> 0
B14: V. | C14: Długoterminowe rozliczenia międzyokresowe | D14: 162000 | E14: 162000 | F14: 85000
C15: udział w sumie bilansowej | D15: =D14/D$29 -> 0.006930481283 | E15: =E14/E$29 -> 0.009990133202 | F15: =F14/F$29 -> 0.006157635468
A17: B. | C17: Aktywa obrotowe | D17: =D20+D22+D24+D26 -> 20032000 | E17: =E20+E22+E24+E26 -> 13838000 | F17: =F20+F22+F24+F26 -> 11292000
C18: udział w sumie bilansowej | D18: =D17/D$29 -> 0.8569839572 | E18: =E17/E$29 -> 0.8533547114 | F18: =F17/F$29 -> 0.8180237612
B20: I. | C20: Zapasy | D20: 533000 | E20: 233000 | F20: 89000
C21: udział w sumie bilansowej | D21: =D20/D$29 -> 0.02280213904 | E21: =E20/E$29 -> 0.01436852491 | F21: =F20/F$29 -> 0.006447406549
B22: II. | C22: Należności krótkoterminowe | D22: 15709000 | E22: 11159000 | F22: 9809000
C23: ` | D23: =D22/D$29 -> 0.6720427807 | E23: =E22/E$29 -> 0.6881475086 | F23: =F22/F$29 -> 0.710591133
B24: III. | C24: Inwestycje krótkoterminowe | D24: 3421000 | E24: 2239000 | F24: 1215000
C25: udział w sumie bilansowej | D25: =D24/D$29 -> 0.1463529412 | E25: =E24/E$29 -> 0.1380735076 | F25: =F24/F$29 -> 0.08801796581
B26: IV. | C26: Krótkoterminowe rozliczenia międzyokresowe | D26: 369000 | E26: 207000 | F26: 179000
C27: udział w sumie bilansowej | D27: =D26/D$29 -> 0.01578609626 | E27: =E26/E$29 -> 0.0127651702 | F27: =F26/F$29 -> 0.01296725587
A28: =#REF! ->  | B28: =#REF! ->  | C28: =#REF! -> 
A29: Aktywa razem | D29: =D17+D3 -> 23375000 | E29: =E17+E3 -> 16216000 | F29: =F17+F3 -> 13804000

Sheet BILANS PASYWA
A1: Lp. | C1: Pozycja: | D1: 31.03.2015 | E1: 31.12.2014 | F1: 31.03.2014
A3: A. | C3: Kapitał (fundusz) własny | D3: =D6+D8+D10+D12+D14+D16+D18+D20+D22 -> 10075000 | E3: =E6+E8+E10+E12+E14+E16+E18+E20+E22 -> 7744000 | F3: 6061000
C4: udział w sumie bilansowej | D4: =D3/D$37 -> 0.4310160428 | E4: =E3/E$37 -> 0.477553034 | F4: =F3/F$37 -> 0.4390756303
B6: I. | C6: Kapitał (fundusz) podstawowy | D6: 4000000 | E6: 4000000 | F6: 4000000
C7: udział w sumie bilansowej | D7: =D6/D$37 -> 0.1711229947 | E7: =E6/E$37 -> 0.2466699556 | F7: =F6/F$37 -> 0.2897710808
B8: II. | C8: Należne wpłaty na kapitał podstawowy (wielkość ujemna) | D8: 0 | E8: 0 | F8: 0
C9: udział w sumie bilansowej | D9: =D8/D$37 -> 0 | E9: =E8/E$37 -> 0 | F9: =F8/F$37 -> 0
B10: III. | C10: Udziały (akcje) własne (wielkość ujemna) | D10: 0 | E10: 0 | F10: 0
C11: udział w sumie bilansowej | D11: =D10/D$37 -> 0 | E11: =E10/E$37 -> 0 | F11: =F10/F$37 -> 0
B12: IV. | C12: Kapitał (fundusz) zapasowy | D12: 207000 | E12: 207000 | F12: 105000
C13: udział w sumie bilansowej | D13: =D12/D$37 -> 0.008855614973 | E13: =E12/E$37 -> 0.0127651702 | F13: =F12/F$37 -> 0.007606490872
B14: V. | C14: Kapitał (fundusz) z aktualizacji wyceny | D14: 0 | E14: 0 | F14: 0
C15: udział w sumie bilansowej | D15: =D14/D$37 -> 0 | E15: =E14/E$37 -> 0 | F15: =F14/F$37 -> 0
B16: VI. | C16: Pozostałe kapitały (fundusze) rezerwowe | D16: 1444000 | E16: 1444000 | F16: 280000
C17: udział w sumie bilansowej | D17: =D16/D$37 -> 0.06177540107 | E17: =E16/E$37 -> 0.08904785397 | F17: =F16/F$37 -> 0.02028397566
B18: VII. | C18: Zysk (strata) z lat ubiegłych | D18: 2093000 | E18: -182000 | F18: 1084000
C19: udział w sumie bilansowej | D19: =D18/D$37 -> 0.08954010695 | E19: =E18/E$37 -> -0.01122348298 | F19: =F18/F$37 -> 0.07852796291
B20: VIII. | C20: Zysk (strata) netto | D20: 2331000 | E20: 2275000 | F20: 592000
C21: udział w sumie bilansowej | D21: =D20/D$37 -> 0.09972192513 | E21: =E20/E$37 -> 0.1402935372 | F21: =F20/F$37 -> 0.04288611997
B22: IX. | C22: Odpisy z zysku netto w ciągu roku obrotowego (wielkość ujemna) | D22: 0 | E22: 0 | F22: 0
C23: udział w sumie bilansowej | D23: =D22/D$37 -> 0 | E23: =E22/E$37 -> 0 | F23: =F22/F$37 -> 0
A25: B. | C25: Zobowiązania i rezerwy na zobowiązania | D25: =D28+D30+D32+D34 -> 13300000 | E25: =E28+E30+E32+E34 -> 8472000 | F25: =F28+F30+F32+F34 -> 7743000
C26: udział w sumie bilansowej | D26: =D25/D$37 -> 0.5689839572 | E26: =E25/E$37 -> 0.522446966 | F26: =F25/F$37 -> 0.5609243697
B28: I. | C28: Rezerwy na zobowiązania | D28: 1235000 | E28: 1155000 | F28: 932000
C29: udział w sumie bilansowej | D29: =D28/D$37 -> 0.0528342246 | E29: =E28/E$37 -> 0.07122594968 | F29: =F28/F$37 -> 0.06751666184
B30: II. | C30: Zobowiązania długoterminowe | D30: 3857000 | E30: 576000 | F30: 2330000
C31: udział w sumie bilansowej | D31: =D30/D$37 -> 0.1650053476 | E31: =E30/E$37 -> 0.03552047361 | F31: =F30/F$37 -> 0.1687916546
B32: III. | C32: Zobowiązania krótkoterminowe | D32: 7367000 | E32: 6391000 | F32: 4015000
C33: udział w sumie bilansowej | D33: =D32/D$37 -> 0.3151657754 | E33: =E32/E$37 -> 0.3941169216 | F33: =F32/F$37 -> 0.2908577224
B34: IV. | C34: Rozliczenia międzyokresowe | D34: 841000 | E34: 350000 | F34: 466000
C35: udział w sumie bilansowej | D35: =D34/D$37 -> 0.03597860963 | E35: =E34/E$37 -> 0.02158362111 | F35: =F34/F$37 -> 0.03375833092
A37: Pasywa razem | D37: =D25+D3 -> 23375000 | E37: =E25+E3 -> 16216000 | F37: =F25+F3 -> 13804000

Sheet P&LA
A1: Lp. | C1: Pozycja: | D1: 01.01.2015- | E1: 01.01.2014- | F1: % zmiany 2015 do 2014
D2: 31.03.2015 | E2: 31.03.2014
A4: A. | C4: Przychody netto ze sprzedaży i zrównane z nimi, w tym: | D4: =SUM(D5:D9) -> 8432000 | E4: =SUM(E5:E9) -> 6244000 | F4: =IFERROR((D4-E4)/E4,"-") -> 0.3504163997
C5: Od jednostek powiązanych | D5: 0 | E5: 0 | F5: =IFERROR((D5-E5)/E5,"-") -> -
B6: I. | C6: Przychody netto ze sprzedaży | D6: 8376000 | E6: 6244000 | F6: 0.3414477899
B7: II. | C7: Zmiana stanu produktów | D7: 0 | E7: 0 | F7: -
B8: III. | C8: Koszt wytworzenia produktów na własne potrzeby jedn. | D8: 0 | E8: 0 | F8: -
B9: IV. | C9: Przychody netto ze sprzedaży towarów i materiałów | D9: 56000 | E9: 0 | F9: -
A11: B. | C11: Koszty działalności operacyjnej | D11: =SUM(D12:D19) -> 6743000 | E11: =SUM(E12:E19) -> 5289000 | F11: =IFERROR((D11-E11)/E11,"-") -> 0.274910191
B12: I. | C12: Amortyzacja | D12: 262000 | E12: 269000 | F12: -0.02602230483
B13: II. | C13: Zużycie materiałów i energii | D13: 392000 | E13: 389000 | F13: 0.007712082262
B14: III. | C14: Usługi obce | D14: 1793000 | E14: 1309000 | F14: 0.3697478992
B15: IV. | C15: Podatki i opłaty | D15: 52000 | E15: 45000 | F15: 0.1555555556
B16: V. | C16: Wynagrodzenia | D16: 3438000 | E16: 2703000 | F16: 0.2719200888
B17: VI. | C17: Ubezpieczenia społeczne i inne świadczenia | D17: 733000 | E17: 514000 | F17: 0.4260700389
B18: VII. | C18: Pozostałe koszty rodzajowe | D18: 73000 | E18: 60000 | F18: 0.2166666667
B19: VIII. | C19: Wartość sprzedanych towarów i materiałów | D19: 0 | E19: 0 | F19: -
A21: C. | C21: ZYSK / STRATA ZE SPRZEDAŻY (A-B) | D21: =D4-D11 -> 1689000 | E21: =E4-E11 -> 955000 | F21: 0.7685863874
F22: -
A23: D. | C23: Pozostałe przychody operacyjne | D23: =SUM(D24:D26) -> 3616000 | E23: =SUM(E24:E26) -> 1430000 | F23: =IFERROR((D23-E23)/E23,"-") -> 1.528671329
B24: I. | C24: Zysk ze zbycia niefinansowych aktywów trwałych | D24: 7000 | E24: 0 | F24: -
B25: II. | C25: Dotacje | D25: 299000 | E25: 109000 | F25: 1.743119266
B26: III. | C26: Inne przychody operacyjne | D26: 3310000 | E26: 1321000 | F26: 1.505677517
F27: -
A28: E. | C28: Pozostałe koszty operacyjne | D28: =SUM(D29:D31) -> 1875000 | E28: =SUM(E29:E31) -> 1265000 | F28: =IFERROR((D28-E28)/E28,"-") -> 0.4822134387
B29: I. | C29: Strata ze zbycia niefinansowych aktywów trwałych | D29: 0 | E29: 0 | F29: -
B30: II. | C30: Aktualizacja wartości aktywów niefinansowych | D30: 0 | E30: 5000 | F30: -1
B31: III. | C31: Inne koszty operacyjne | D31: 1875000 | E31: 1260000 | F31: 0.4880952381
A33: F. | C33: ZYSK / STRATA Z DZIAŁALNOŚCI OPERACYJNEJ (C+D-E) | D33: =D21+D23-D28 -> 3430000 | E33: =E21+E23-E28 -> 1120000 | F33: 2.0625
A35: G. | C35: Przychody finansowe | D35: =SUM(D36:D40) -> 5000 | E35: =SUM(E36:E40) -> 1000 | F35: =IFERROR((D35-E35)/E35,"-") -> 4
B36: I. | C36: Dywidendy i udziały w zyskach | D36: 0 | E36: 0 | F36: -
B37: II. | C37: Odsetki | D37: 5000 | E37: 1000 | F37: 4
B38: III. | C38: Zysk ze zbycia inwestycji | D38: 0 | E38: 0 | F38: -
B39: IV. | C39: Aktualizacja wartości inwestycji | D39: 0 | E39: 0 | F39: -
B40: V. | C40: Inne | D40: 0 | E40: 0 | F40: -
A42: H. | C42: Koszty finansowe | D42: =SUM(D43:D46) -> 722000 | E42: =SUM(E43:E46) -> 210000 | F42: =IFERROR((D42-E42)/E42,"-") -> 2.438095238
B43: I. | C43: Odsetki | D43: 105000 | E43: 103000 | F43: 0.01941747573
B44: II. | C44: Strata ze zbycia inwestycji | D44: 0 | E44: 0 | F44: -
B45: III. | C45: Aktualizacja wartości inwestycji | D45: 0 | E45: 0 | F45: -
B46: IV. | C46: Inne | D46: 617000 | E46: 107000 | F46: 4.76635514
A48: I. | C48: ZYSK / STRATA Z DZIAŁALNOŚCI GOSPODARCZEJ (F+G-H) | D48: =D33+D35-D42 -> 2713000 | E48: =E33+E35-E42 -> 911000 | F48: 1.978046103
A49: J. | C49: Wynik zdarzeń nadzwyczajnych | D49: 0 | E49: 0 | F49: -
A51: K. | C51: ZYSK / STRATA BRUTTO | D51: =D48+D49 -> 2713000 | E51: =E48+E49 -> 911000 | F51: 1.978046103
A53: L. | C53: Podatek dochodowy | D53: 382000 | E53: 319000 | F53: 0.197492163
A54: M. | C54: Pozostałe obowiązkowe zmniejszenia zysku (zwiększenia straty) | D54: 0 | E54: 0 | F54: -
A56: N. | C56: ZYSK / STRATA NETTO (K-L-M) | D56: =D51-D53 -> 2331000 | E56: =E51-E53 -> 592000 | F56: 2.9375

Sheet CF
A1: Lp. | C1: Pozycja: | D1: 01.01.2015- | E1: 01.01.2014-
D2: 31.03.2015 | E2: 31.03.2014
C3: Stan środków pieniężnych na pocz.okresu | D3: 2239000 | E3: 767000
A5: A. | C5: Przepływy środków pieniężnych z działalności operacyjnej
B6: I. | C6: Zysk (strata) netto | D6: 2331000 | E6: 592000
B7: II. | C7: Korekty razem | D7: -2551000 | E7: 1031000
B8: III. | C8: Przepływy pieniężne netto z działalności operacyjnej (I+/–II) | D8: =D6+D7 -> -220000 | E8: =E6+E7 -> 1623000
A10: B. | C10: Przepływy środków pieniężnych z działalności inwestycyjnej
B11: I. | C11: Wpływy | D11: 12000 | E11: 1000
B12: II. | C12: Wydatki | D12: -1227000 | E12: -465000
B13: III. | C13: Przepływy pieniężne netto z działalności inwestycyjnej (I–II) | D13: =D11+D12 -> -1215000 | E13: =E11+E12 -> -464000
A15: C. | C15: Przepływy środków pieniężnych z działalności finansowej
B16: I. | C16: Wpływy | D16: 3546000 | E16: 141000
B17: II. | C17: Wydatki | D17: -929000 | E17: -852000
B18: III. | C18: Przepływy pieniężne netto z działalności finansowej (I–II) | D18: =D16+D17 -> 2617000 | E18: =E16+E17 -> -711000
A20: D. | C20: Przepływy pieniężne netto, razem (A.III+/–B.III+/-C.III)
A21: E. | C21: Bilansowa zmiana stanu środków pieniężnych, w tym: | D21: =D8+D13+D18 -> 1182000 | E21: =E8+E13+E18 -> 448000
A22: F. | C22: Środki pieniężne na początek okresu | D22: =D3 -> 2239000 | E22: =E3 -> 767000
A23: G. | C23: Środki pieniężne na koniec okresu (F+/–D), w tym: | D23: =D22+D21 -> 3421000 | E23: =E22+E21 -> 1215000

Sheet Wskaźniki _I
B2: Wskaźniki za l kw. 2014 - 2015
B3: 31.03.2014 | C3: 31.03.2015
A4: Wskaźniki zadłużenia
A5: Wskaźnik ogólnego zadłużenia | B5: ='BILANS PASYWA'!F25/'BILANS PASYWA'!F37 -> 0.5609243697 | C5: ='BILANS PASYWA'!D25/'BILANS PASYWA'!D37 -> 0.5689839572
A6: Wskaźnik zadłużenia kapitału własnego | B6: ='BILANS PASYWA'!F25/'BILANS PASYWA'!F3 -> 1.277511962 | C6: ='BILANS PASYWA'!D25/'BILANS PASYWA'!D3 -> 1.320099256
A7: Wskaźnik zadłużenia netto / EBITDA | B7: =('BILANS PASYWA'!F25-'BILANS AKTYWA'!F24)/('P&LA'!E51-'P&LA'!E35+'P&LA'!E42+'P&LA'!E12) -> 4.699784017 | C7: =('BILANS PASYWA'!D25-'BILANS AKTYWA'!D24)/('P&LA'!D51-'P&LA'!D35+'P&LA'!D42+'P&LA'!D12) -> 2.675785482
A9: Wskaźniki płynności
A10: Wskaźnik płynności bieżącej | B10: ='BILANS AKTYWA'!F17/'BILANS PASYWA'!F32 -> 2.8124533 | C10: ='BILANS AKTYWA'!D17/'BILANS PASYWA'!D32 -> 2.71915298
A11: Wskaźnik płynności szybkiej | B11: =('BILANS AKTYWA'!F17-'BILANS AKTYWA'!F20-'BILANS AKTYWA'!F26)/'BILANS PASYWA'!F32 -> 2.745703611 | C11: =('BILANS AKTYWA'!D17-'BILANS AKTYWA'!D20-'BILANS AKTYWA'!D26)/'BILANS PASYWA'!D32 -> 2.596715081
A12: Wskaźnik płynności gotówkowej | B12: ='BILANS AKTYWA'!F24/'BILANS PASYWA'!F32 -> 0.302615193 | C12: ='BILANS AKTYWA'!D24/'BILANS PASYWA'!D32 -> 0.4643681281
A14: Wskaźniki rentowności
A15: Wskaźnik rentowności sprzedaży | B15: ='P&LA'!E56/'P&LA'!E4 -> 0.09481101858 | C15: ='P&LA'!D56/'P&LA'!D4 -> 0.2764468691
A16: Wskaźnik rentowności kapitałów własnych | B16: ='P&LA'!E56/'BILANS PASYWA'!F3 -> 0.09767365121 | C16: ='P&LA'!D56/'BILANS PASYWA'!D3 -> 0.2313647643
A17: Wskaźnik rentowności aktywów | B17: ='P&LA'!E56/'BILANS AKTYWA'!F29 -> 0.04288611997 | C17: ='P&LA'!D56/'BILANS AKTYWA'!D29 -> 0.09972192513
